[Event "WYCC 2018 G16"]
[Site "Halkidiki"]
[Date "2018.10.21"]
[Round "2"]
[White "Beydullayeva, Govhar"]
[Black "Hercog, Nusa"]
[Result "1-0"]
[ECO "A06"]
[WhiteElo "2202"]
[BlackElo "2017"]
[Annotator "NA"]
[PlyCount "117"]
[EventDate "2018.10.20"]
[EventType "swiss"]
[EventCountry "GRE"]
[SourceTitle "playchess.com"]
[Source "ChessBase"]
[SourceQuality "1"]
[TimeControl "40/5400+30:1800+30"]

1. Nf3 {[%emt 0:00:00]} d5 {[%emt 0:00:00]} 2. g3 {[%emt 0:00:00]} Nf6 {[%emt 0:00:00]} 3. Bg2 {[%emt 0:00:00]} c6 {[%emt 0:00:01]} 4. O-O {[%emt 0:00:00]} Bf5 {[%emt 0:00:10]} 5. c4 {[%emt 0:01:10]} e6 {[%emt 0:01:13]} 6. cxd5 {[%emt 0:01:52]} exd5 {[%emt 0:02:04] LiveBook: 290 Games} 7. d3 {[%emt 0:00:52]} Nbd7 {[%emt 0:08:14]} 8. Nc3 {[%emt 0:01:28]} Be7 {[%emt 0:02:17] A11: English Opening: 1...c6} 9. Qc2 {[%emt 0:15:11]} Nc5 $146 {[%emt 0:14:27]} ({Predecessor:} 9... O-O 10. e4 Bg6 11. Nh4 Nc5 12. Nxg6 hxg6 13. e5 Nfd7 14. d4 Ne6 15. Be3 Nb6 16. f4 {0-1 (37) Izoria,Z (2643)-Schneider,D (2502) Richardson 2007}) 10. b4 {[%emt 0:07:34]} Ne6 {[%emt 0:01:42]} 11. e4 {[%emt 0:06:44]} Bg6 {[%emt 0:18:59]} 12. Rb1 {[%emt 0:04:23]} O-O {[%emt 0:03:58]} 13. Nh4 {[%emt 0:03:04]} dxe4 {[%emt 0:07:22]} 14. dxe4 {[%emt 0:00:20]} Ng4 {[%emt 0:08:20]} 15. Nxg6 {[%emt 0:01:39]} hxg6 {[%emt 0:00:20]} 16. Rd1 {[%emt 0:05:07]} Qb6 {[%emt 0:04:02]} 17. h3 {[%emt 0:01:10]} Ne5 {[%emt 0:01:46]} 18. Be3 {[%emt 0:02:12]} Qc7 {[%emt 0:00:14]} 19. Bf1 {[%emt 0:10:46]} Rfd8 {[%emt 0:03:30]} 20. f4 {[%emt 0:01:51]} Nf3+ {[%emt 0:01:07]} 21. Kg2 {[%emt 0:00:51]} Nfd4 {[%emt 0:00:08]} 22. Qf2 {[%emt 0:00:24]} Nb5 {[%emt 0:04:30]} 23. Bxb5 {[%emt 0:03:32]} cxb5 $2 {[%emt 0:00:08]} (23... Rxd1 $16 {might work better.} 24. Rxd1 Bxb4) 24. Nd5 {[%emt 0:00:06]} Rxd5 {[%emt 0:08:31]} 25. exd5 {[%emt 0:00:18]} Nf8 {[%emt 0:00:15]} 26. Rbc1 {[%emt 0:01:51]} Qd7 {[%emt 0:00:33]} 27. Bc5 {[%emt 0:05:05]} Re8 {[%emt 0:04:01]} 28. Bxe7 {[%emt 0:08:42]} Rxe7 {[%emt 0:00:07]} 29. Qf3 {[%emt 0:01:07]} Qd6 {[%emt 0:00:58]} 30. a3 {[%emt 0:00:26]} a6 {[%emt 0:01:04]} 31. Re1 {[%emt 0:01:25]} Rd7 {[%emt 0:01:28]} 32. Rc8 {[%emt 0:03:21]} Rd8 {[%emt 0:01:13]} 33. Rxd8 {[%emt 0:00:08]} Qxd8 {[%emt 0:00:01]} 34. Qe4 {[%emt 0:05:41]} Qc7 {[%emt 0:00:59]} 35. Re2 {[%emt 0:00:56]} Qd6 {[%emt 0:02:41]} 36. Qe5 {[%emt 0:00:26]} Qd7 {[%emt 0:00:08]} 37. Rc2 {[%emt 0:00:55]} f6 {[%emt 0:00:58]} 38. Qe4 {[%emt 0:00:07]} Qd6 {[%emt 0:00:22]} 39. Kh2 {[%emt 0:01:59]} Kf7 $1 $11 {[%emt 0:00:51] and Black is okay.} 40. Qd4 {[%emt 0:00:00]} (40. Rc8 Qe7 41. Qxe7+ Kxe7 42. Rc7+ Nd7 43. Rxb7 g5 44. fxg5 fxg5) 40... Nd7 {[%emt 0:00:00]} 41. Qe4 {[%emt 0:05:44]} f5 $2 {[%emt 0:08:30] [#]} 42. Qe6+ $1 {[%emt 0:00:44]} Qxe6 {[%emt 0:00:12]} 43. dxe6+ {[%emt 0:00:01]} Kxe6 {[%emt 0:00:05]} 44. Rc7 {[%emt 0:00:09]} b6 {[%emt 0:07:26]} 45. Ra7 {[%emt 0:00:12]} Kd6 {[%emt 0:04:01]} 46. Rxa6 {[%emt 0:00:32]} Kc7 {[%emt 0:01:14]} 47. Ra8 {[%emt 0:00:06]} g5 {[%emt 0:02:52]} 48. fxg5 {[%emt 0:00:41]} g6 {[%emt 0:00:04]} 49. Rg8 {[%emt 0:01:21]} Ne5 {[%emt 0:00:11]} 50. Kg2 {[%emt 0:01:37]} Kd6 {[%emt 0:00:17]} 51. Kf2 {[%emt 0:00:08]} Kd5 {[%emt 0:01:43]} 52. Ke3 {[%emt 0:00:24]} Kd6 {[%emt 0:02:10]} 53. h4 {[%emt 0:01:52]} Ke6 {[%emt 0:01:55]} 54. Re8+ {[%emt 0:00:24]} Kd5 $18 {[%emt 0:00:13]} 55. h5 {[%emt 0:00:32]} gxh5 {[%emt 0:01:06]} 56. Kf4 {[%emt 0:00:05]} Nf7 {[%emt 0:02:34]} 57. g6 {[%emt 0:00:08]} Nd6 {[%emt 0:00:05]} 58. Re5+ {[%emt 0:00:04]} Kd4 {[%emt 0:00:08]} 59. g7 {[%emt 0:00:04]} 1-0

[Event "WYCC 2018 G16"]
[Site "Halkidiki"]
[Date "2018.10.21"]
[Round "2"]
[White "Getman, Tatyana"]
[Black "Bogdanic, Katarina"]
[Result "1-0"]
[ECO "E11"]
[WhiteElo "2195"]
[BlackElo "2014"]
[Annotator "NA"]
[PlyCount "75"]
[EventDate "2018.10.20"]
[EventType "swiss"]
[EventCountry "GRE"]
[SourceTitle "playchess.com"]
[Source "ChessBase"]
[SourceQuality "1"]
[TimeControl "40/5400+30:1800+30"]

1. d4 {[%emt 0:00:00]} Nf6 {[%emt 0:00:00]} 2. c4 {[%emt 0:00:00]} e6 {[%emt 0:00:00]} 3. Nf3 {[%emt 0:00:00]} Bb4+ {[%emt 0:00:00]} 4. Bd2 {[%emt 0:00:00]} c5 {[%emt 0:00:05]} 5. Bxb4 {[%emt 0:02:19]} cxb4 {[%emt 0:00:05]} 6. Nbd2 {[%emt 0:01:04]} b6 {[%emt 0:01:13]} 7. e4 {[%emt 0:02:41]} Bb7 {[%emt 0:11:01]} 8. Bd3 {[%emt 0:01:41]} O-O {[%emt 0:10:46]} 9. e5 {[%emt 0:06:52]} Ne8 {[%emt 0:00:15]} 10. Ne4 {[%emt 0:03:06]} f5 {[%emt 0:03:37]} 11. Nd6 {[%emt 0:03:00]} (11. exf6 $14 Nxf6 12. Qc2) 11... Bxf3 {[%emt 0:06:35]} ({Black should play} 11... Nxd6 $17 12. exd6 Bxf3 13. Qxf3 Nc6) 12. Qxf3 {[%emt 0:00:33]} Nc6 {[%emt 0:00:14]} 13. Nxe8 {[%emt 0:06:42]} Qxe8 {[%emt 0:00:22]} 14. Qf4 {[%emt 0:01:30]} Qg6 {[%emt 0:02:06]} 15. O-O-O {[%emt 0:17:20]} Qg4 {[%emt 0:01:40]} 16. Qe3 {[%emt 0:08:22]} Qxd4 $15 {[%emt 0:06:18]} ({Reject} 16... Nxd4 $6 17. f4 $11) 17. Qxd4 {[%emt 0:00:12]} Nxd4 {[%emt 0:00:05]} 18. Bc2 {[%emt 0:02:46]} Nxc2 {[%emt 0:07:06]} 19. Kxc2 {[%emt 0:00:03]} Rf7 {[%emt 0:01:13]} 20. f4 {[%emt 0:02:24]} b5 {[%emt 0:01:23]} 21. cxb5 {[%emt 0:01:40]} Rb8 {[%emt 0:00:18]} 22. Rd6 {[%emt 0:01:13]} Rxb5 {[%emt 0:02:28]} 23. Rhd1 {[%emt 0:00:32]} g5 {[%emt 0:05:13]} 24. g3 {[%emt 0:00:30]} gxf4 {[%emt 0:00:16]} 25. gxf4 {[%emt 0:00:02]} Rb7 {[%emt 0:01:44]} 26. Kb3 {[%emt 0:06:04]} Rg7 {[%emt 0:02:19]} 27. R1d2 {[%emt 0:00:54]} Kf8 {[%emt 0:02:48]} 28. R6d4 {[%emt 0:00:33]} a5 {[%emt 0:00:21]} 29. Ka4 {[%emt 0:02:02]} Ra7 {[%emt 0:00:03]} 30. Kb5 {[%emt 0:01:11]} Ke8 {[%emt 0:01:37]} 31. Rd6 {[%emt 0:00:52]} Rg4 {[%emt 0:02:35]} 32. Kb6 {[%emt 0:00:53]} Ra8 {[%emt 0:00:06]} 33. Rxd7 {[%emt 0:00:12]} Rc8 {[%emt 0:02:59]} 34. Kb7 {[%emt 0:03:29]} Rc4 {[%emt 0:00:33]} 35. h4 {[%emt 0:12:08]} Rxh4 {[%emt 0:03:49]} 36. Rd8+ {[%emt 0:00:19]} Kf7 {[%emt 0:02:26]} 37. R2d7+ {[%emt 0:00:01]} Kg6 {[%emt 0:00:33]} 38. Rg8+ {[%emt 0:00:03]} 1-0

[Event "WYCC 2018 G16"]
[Site "Halkidiki"]
[Date "2018.10.21"]
[Round "2"]
[White "Berdnyk, Mariia"]
[Black "Jarocka, Liwia"]
[Result "0-1"]
[ECO "D37"]
[WhiteElo "2179"]
[BlackElo "1990"]
[Annotator "ChessBase"]
[PlyCount "180"]
[EventDate "2018.10.20"]
[EventType "swiss"]
[EventCountry "GRE"]
[SourceTitle "playchess.com"]
[Source "ChessBase"]
[SourceQuality "1"]
[TimeControl "40/5400+30:1800+30"]

1. d4 {[%emt 0:00:00]} Nf6 {[%emt 0:00:00]} 2. c4 {[%emt 0:00:00]} e6 {[%emt 0:00:00]} 3. Nf3 {[%emt 0:00:00]} d5 {[%emt 0:00:06]} 4. Nc3 {[%emt 0:00:00]} b6 {[%emt 0:01:08]} 5. cxd5 {[%emt 0:00:50]} exd5 {[%emt 0:00:19]} 6. e3 {[%emt 0:02:48]} Bd6 {[%emt 0:03:36]} 7. Bd3 {[%emt 0:01:56]} O-O {[%emt 0:01:14]} 8. O-O {[%emt 0:06:05]} Bb7 {[%emt 0:05:56]} 9. Qc2 {[%emt 0:02:53]} c5 {[%emt 0:06:54]} 10. Rd1 {[%emt 0:09:56]} c4 {[%emt 0:12:08]} 11. Bf1 {[%emt 0:06:22]} Nc6 {[%emt 0:00:17]} 12. b3 {[%emt 0:02:42]} cxb3 {[%emt 0:01:42]} 13. axb3 {[%emt 0:04:40]} Rc8 {[%emt 0:00:55]} 14. Qb2 {[%emt 0:02:37]} a5 {[%emt 0:03:20]} 15. Bd2 {[%emt 0:04:00]} Nb4 {[%emt 0:06:54]} 16. Rdc1 {[%emt 0:00:35]} Ne4 {[%emt 0:07:27]} 17. Nb5 {[%emt 0:01:16]} Be7 {[%emt 0:03:26]} 18. Ne5 {[%emt 0:02:26]} f6 {[%emt 0:05:09]} 19. Nd3 {[%emt 0:01:01]} Nxd2 {[%emt 0:01:14]} 20. Qxd2 {[%emt 0:00:08]} Ba6 {[%emt 0:00:53]} 21. Nc3 {[%emt 0:10:19]} Bxd3 {[%emt 0:04:52]} 22. Bxd3 {[%emt 0:00:06]} f5 {[%emt 0:02:49]} 23. Be2 {[%emt 0:05:50]} Rf6 {[%emt 0:05:07]} 24. Bb5 {[%emt 0:04:54]} Bd6 {[%emt 0:03:51]} 25. Ne2 {[%emt 0:01:16]} Rf7 {[%emt 0:04:07]} 26. Nf4 {[%emt 0:03:38]} Rfc7 {[%emt 0:07:32]} 27. Ne6 {[%emt 0:01:29]} Rxc1+ {[%emt 0:00:05]} 28. Rxc1 {[%emt 0:00:04]} Rxc1+ {[%emt 0:00:08]} 29. Qxc1 {[%emt 0:00:05]} Qb8 {[%emt 0:00:06]} 30. g3 {[%emt 0:03:58]} Kf7 {[%emt 0:00:09]} 31. Ng5+ {[%emt 0:00:10]} Kg6 {[%emt 0:01:25]} 32. h4 {[%emt 0:03:42]} h6 {[%emt 0:00:25]} 33. Ne6 {[%emt 0:01:26]} Kf6 {[%emt 0:00:23]} 34. Nf4 {[%emt 0:00:59]} Qc7 {[%emt 0:00:39]} 35. Qb1 {[%emt 0:01:42]} Bxf4 {[%emt 0:01:51]} 36. exf4 {[%emt 0:00:49]} Qc2 {[%emt 0:00:18]} 37. Qe1 {[%emt 0:03:38]} Qe4 {[%emt 0:00:15]} 38. Qc3 {[%emt 0:02:22]} Qb1+ {[%emt 0:00:35]} 39. Bf1 {[%emt 0:03:35]} Qc2 {[%emt 0:00:35]} 40. Qe3 {[%emt 0:00:00]} Qe4 {[%emt 0:00:00]} 41. Qc3 {[%emt 0:05:13]} Qc2 {[%emt 0:00:19]} 42. Qe1 {[%emt 0:00:31]} Qe4 {[%emt 0:00:07]} 43. Qd1 {[%emt 0:02:59]} Qc2 {[%emt 0:01:09]} 44. Qh5 {[%emt 0:04:09]} Qe4 {[%emt 0:08:49]} 45. Qd1 {[%emt 0:04:58]} Nc2 {[%emt 0:14:47]} 46. Bg2 {[%emt 0:02:36]} Qe1+ {[%emt 0:00:23]} 47. Qxe1 {[%emt 0:00:04]} Nxe1 {[%emt 0:00:03]} 48. Bxd5 {[%emt 0:00:06]} Nc2 {[%emt 0:00:07]} 49. f3 {[%emt 0:03:48]} Nxd4 {[%emt 0:00:16]} 50. Kf2 {[%emt 0:00:31]} Nc2 {[%emt 0:04:38]} 51. Ke2 {[%emt 0:01:41]} Ke7 {[%emt 0:00:07]} 52. Bg8 {[%emt 0:02:34]} Nb4 {[%emt 0:06:32]} 53. Ke3 {[%emt 0:03:24]} Kd6 {[%emt 0:00:24]} 54. Kd4 {[%emt 0:05:54]} b5 {[%emt 0:00:22]} 55. g4 {[%emt 0:02:00]} Nc6+ {[%emt 0:00:36]} 56. Kd3 {[%emt 0:00:18]} Ne7 {[%emt 0:00:29]} 57. Bh7 {[%emt 0:01:38]} fxg4 {[%emt 0:03:30]} 58. fxg4 {[%emt 0:00:05]} Nd5 {[%emt 0:00:13]} 59. f5 {[%emt 0:01:30]} Nf6 {[%emt 0:00:09]} 60. Bg6 {[%emt 0:00:24]} Nxg4 {[%emt 0:00:15]} 61. Ke4 {[%emt 0:01:04]} Nf6+ {[%emt 0:01:33]} 62. Kd4 {[%emt 0:00:49]} Nd5 {[%emt 0:00:32]} 63. Be8 {[%emt 0:00:27]} Nc7 {[%emt 0:00:52]} 64. Bh5 {[%emt 0:00:27]} a4 {[%emt 0:01:27]} 65. bxa4 {[%emt 0:00:47]} bxa4 {[%emt 0:00:05]} 66. Bd1 {[%emt 0:00:56]} a3 {[%emt 0:00:04]} 67. Bb3 {[%emt 0:00:06]} Ne8 {[%emt 0:00:49]} 68. Ba2 {[%emt 0:01:15]} Nf6 {[%emt 0:00:09]} 69. Bb3 {[%emt 0:01:06]} Nd7 {[%emt 0:00:22]} 70. Kc3 {[%emt 0:00:51]} Ke5 {[%emt 0:00:53]} 71. Bc2 {[%emt 0:00:21]} Nc5 {[%emt 0:00:29]} 72. Bb1 {[%emt 0:00:39]} Ne4+ {[%emt 0:00:31]} 73. Kb4 {[%emt 0:00:06]} Nd6 {[%emt 0:00:25]} 74. Kxa3 {[%emt 0:00:21]} Nxf5 {[%emt 0:00:05]} 75. h5 {[%emt 0:00:09]} Ng3 {[%emt 0:00:05]} 76. Bg6 {[%emt 0:00:05]} Kf6 {[%emt 0:00:04]} 77. Kb4 {[%emt 0:00:12]} Kg5 {[%emt 0:00:08]} 78. Kc4 {[%emt 0:00:14]} Nxh5 {[%emt 0:00:05]} 79. Bf7 {[%emt 0:00:05]} Nf4 {[%emt 0:00:25]} 80. Kd4 {[%emt 0:00:21]} Kg4 {[%emt 0:01:14]} 81. Ke3 {[%emt 0:01:34]} g5 {[%emt 0:00:13]} 82. Kf2 {[%emt 0:00:08]} h5 {[%emt 0:01:34]} 83. Be8 {[%emt 0:00:17]} Nd5 {[%emt 0:00:51]} 84. Kg2 {[%emt 0:02:12]} Nf6 {[%emt 0:01:19]} 85. Bc6 {[%emt 0:00:21]} Kf4 {[%emt 0:01:08]} 86. Kh3 {[%emt 0:00:16]} Ne4 {[%emt 0:00:38]} 87. Bb7 {[%emt 0:00:18]} Nf2+ {[%emt 0:00:32]} 88. Kg2 {[%emt 0:00:06]} Ng4 {[%emt 0:01:03]} 89. Kh3 {[%emt 0:00:31]} Ne5 {[%emt 0:00:18]} 90. Bd5 {[%emt 0:00:45]} g4+ {[%emt 0:01:00]} 0-1

[Event "WYCC 2018 G16"]
[Site "Halkidiki"]
[Date "2018.10.21"]
[Round "2"]
[White "Goltseva, Ekaterina"]
[Black "Aciu, Malina-Andreea"]
[Result "1-0"]
[ECO "E52"]
[WhiteElo "2169"]
[BlackElo "1976"]
[Annotator "NA"]
[PlyCount "71"]
[EventDate "2018.10.20"]
[EventType "swiss"]
[EventCountry "GRE"]
[SourceTitle "playchess.com"]
[Source "ChessBase"]
[SourceQuality "1"]
[TimeControl "40/5400+30:1800+30"]

1. d4 {[%emt 0:00:00]} Nf6 {[%emt 0:00:00]} 2. c4 {[%emt 0:00:00]} e6 {[%emt 0:00:00]} 3. Nc3 {[%emt 0:00:05]} Bb4 {[%emt 0:00:00]} 4. e3 {[%emt 0:01:24]} O-O {[%emt 0:00:00]} 5. Bd3 {[%emt 0:03:28]} d5 {[%emt 0:00:00]} 6. Nf3 {[%emt 0:00:10]} b6 {[%emt 0:00:02]} 7. O-O {[%emt 0:03:24]} Bb7 {[%emt 0:00:05]} 8. cxd5 {[%emt 0:00:57]} exd5 {[%emt 0:00:08]} 9. Ne5 {[%emt 0:08:30]} Nbd7 {[%emt 0:03:23]} 10. f4 {[%emt 0:02:05] E52: Nimzo-Indian: Rubinstein: 4...0-0 5 Nf3 d5 6 Bd3 b6} Qe7 $146 {[%emt 0:07:54]} ({Predecessor:} 10... c5 11. Ne2 c4 12. Bc2 Ne8 13. Rf3 Ndf6 14. Nc3 Bc8 15. Nc6 Qd6 16. Nxb4 Qxb4 17. h3 Bb7 18. Bd2 Qe7 {1-0 (89) Navara,D (2741)-Kryvoruchko,Y (2711) Linares 2018}) 11. Qf3 {[%emt 0:05:24]} Bxc3 {[%emt 0:06:42]} 12. bxc3 {[%emt 0:11:17]} Ne4 {[%emt 0:06:20]} 13. c4 {[%emt 0:01:48]} f5 {[%emt 0:02:38]} 14. Qd1 {[%emt 0:16:18]} Rad8 {[%emt 0:09:29]} 15. Qa4 {[%emt 0:09:13]} Nxe5 {[%emt 0:08:49]} 16. fxe5 {[%emt 0:00:13]} Qe6 {[%emt 0:16:58]} 17. Ba3 {[%emt 0:12:18]} Rfe8 {[%emt 0:06:48]} 18. Bxe4 {[%emt 0:04:44]} fxe4 {[%emt 0:00:31]} 19. c5 {[%emt 0:00:44]} a5 {[%emt 0:11:55]} 20. cxb6 {[%emt 0:01:13]} cxb6 {[%emt 0:00:10]} 21. Rac1 {[%emt 0:05:27]} Rc8 {[%emt 0:01:08]} 22. Qb5 {[%emt 0:00:38]} Ra8 {[%emt 0:01:55]} 23. Rf4 {[%emt 0:01:53]} Ba6 {[%emt 0:05:08]} 24. Qb2 {[%emt 0:00:39]} Bc4 {[%emt 0:00:36]} 25. Bd6 {[%emt 0:01:51]} b5 {[%emt 0:00:43]} 26. a3 {[%emt 0:01:29]} Rac8 {[%emt 0:01:28]} 27. Qd2 {[%emt 0:00:55]} Ra8 {[%emt 0:01:51]} 28. Qe1 {[%emt 0:00:39]} Rec8 {[%emt 0:01:28]} 29. h3 $14 {[%emt 0:00:48]} h6 {[%emt 0:01:18]} 30. Qg3 {[%emt 0:00:47]} Ra7 {[%emt 0:00:51]} 31. Rf6 {[%emt 0:00:40]} Qd7 {[%emt 0:02:14]} 32. Rxh6 {[%emt 0:01:42]} Ra6 {[%emt 0:00:41]} 33. Rg6 {[%emt 0:00:32]} b4 {[%emt 0:01:02]} 34. e6 {[%emt 0:01:29]} Qxd6 {[%emt 0:00:59]} 35. Rxg7+ {[%emt 0:00:04]} Kf8 {[%emt 0:01:14]} 36. Rf7+ {[%emt 0:00:15]} 1-0

[Event "WYCC 2018 G16"]
[Site "Halkidiki"]
[Date "2018.10.21"]
[Round "2"]
[White "Bach, Ngoc Thuy Duong"]
[Black "De Freitas, Isabella Ribeiro Co"]
[Result "1-0"]
[ECO "D35"]
[WhiteElo "2161"]
[BlackElo "1605"]
[Annotator "NA"]
[PlyCount "75"]
[EventDate "2018.10.20"]
[EventType "swiss"]
[EventCountry "GRE"]
[SourceTitle "playchess.com"]
[Source "ChessBase"]
[SourceQuality "1"]
[TimeControl "40/5400+30:1800+30"]

1. d4 {[%emt 0:00:00]} d5 {[%emt 0:00:00]} 2. c4 {[%emt 0:00:00]} e6 {[%emt 0:00:00]} 3. Nc3 {[%emt 0:00:00]} Nf6 {[%emt 0:00:00]} 4. cxd5 {[%emt 0:00:00]} exd5 {[%emt 0:00:01] LiveBook: 7990 Games} 5. Bg5 {[%emt 0:00:00]} Nbd7 {[%emt 0:01:10]} 6. e3 {[%emt 0:00:13]} Be7 {[%emt 0:00:17]} 7. Bd3 {[%emt 0:00:08]} O-O {[%emt 0:00:29]} 8. Nf3 {[%emt 0:00:38]} h6 {[%emt 0:00:38]} 9. Bh4 {[%emt 0:00:44]} b6 {[%emt 0:02:36]} 10. O-O {[%emt 0:01:09]} Bb7 {[%emt 0:00:30]} 11. Qc2 {[%emt 0:08:19]} c5 {[%emt 0:04:15]} 12. Rad1 {[%emt 0:05:12]} c4 {[%emt 0:03:08] D55: Queen's Gambit Declined: 4 Bg5 Be7: Lines without ...h6 and 6...h6 7 Bxf6} (12... Rc8 13. Bf5 g6 14. Bd3 c4 15. Be2 Re8 16. Ne5 Nf8 17. f4 a6 18. a4 Bc6 19. g4 b5 20. axb5 axb5 {½-½ (57) Riazantsev,A (2671)-Marin,M (2539) Tallinn 2016}) 13. Bf5 {[%emt 0:00:07]} Re8 {[%emt 0:00:54]} 14. Bg3 {[%emt 0:08:06]} a6 {[%emt 0:08:53]} 15. a4 $146 {[%emt 0:00:39]} ({Predecessor:} 15. Ne5 Nf8 16. e4 b5 17. Ng4 Nxe4 18. Nxe4 dxe4 {0-1 (46) Bregadze,L (2394)-Goganov,A (2299) Kemer 2007}) 15... Bc6 {[%emt 0:01:54]} 16. Ne5 {[%emt 0:02:43]} Nxe5 {[%emt 0:01:30]} 17. dxe5 {[%emt 0:00:12]} Nh5 {[%emt 0:05:08]} 18. e6 {[%emt 0:06:25]} Nxg3 {[%emt 0:06:40]} 19. exf7+ $18 {[%emt 0:04:17]} ({Much less strong is} 19. hxg3 $6 Qd6 $18) 19... Kxf7 {[%emt 0:00:53]} 20. hxg3 {[%emt 0:03:39]} Qd6 {[%emt 0:27:34]} 21. Nxd5 {[%emt 0:01:36]} Bxd5 {[%emt 0:00:45]} 22. e4 {[%emt 0:00:07]} g6 {[%emt 0:03:08]} 23. Rxd5 {[%emt 0:00:48]} Qb4 {[%emt 0:03:38]} 24. Bd7 {[%emt 0:00:41]} Red8 {[%emt 0:01:54]} 25. Rfd1 {[%emt 0:02:29]} Ra7 {[%emt 0:08:25]} 26. e5 {[%emt 0:02:44]} h5 {[%emt 0:09:07]} 27. Be6+ {[%emt 0:01:41]} Kg7 {[%emt 0:06:22]} 28. Rxd8 {[%emt 0:00:21]} Bxd8 {[%emt 0:00:06]} 29. Rxd8 {[%emt 0:00:08]} Kh7 {[%emt 0:02:37]} 30. Rg8 {[%emt 0:03:21]} Rg7 {[%emt 0:00:36]} 31. Rxg7+ {[%emt 0:00:06]} Kxg7 {[%emt 0:00:02]} 32. Qc3 {[%emt 0:00:25]} Qxa4 {[%emt 0:00:18]} 33. Bxc4 {[%emt 0:00:26]} b5 {[%emt 0:02:25]} 34. e6+ {[%emt 0:00:25]} Kh7 {[%emt 0:00:19]} 35. Bb3 {[%emt 0:00:17]} Qa1+ {[%emt 0:00:41]} 36. Kh2 {[%emt 0:00:05]} h4 {[%emt 0:00:05]} 37. e7 {[%emt 0:00:40]} h3 {[%emt 0:00:48]} 38. e8=Q {[%emt 0:00:39]} 1-0

[Event "WYCC 2018 G16"]
[Site "Halkidiki"]
[Date "2018.10.21"]
[Round "2"]
[White "Gomez Barrera, Javiera Belen"]
[Black "Djidjeli, Sarah"]
[Result "1/2-1/2"]
[ECO "B32"]
[WhiteElo "2136"]
[BlackElo "1952"]
[Annotator "NA"]
[PlyCount "66"]
[EventDate "2018.10.20"]
[EventType "swiss"]
[EventCountry "GRE"]
[SourceTitle "playchess.com"]
[Source "ChessBase"]
[SourceQuality "1"]
[TimeControl "40/5400+30:1800+30"]

1. e4 {[%emt 0:00:00]} c5 {[%emt 0:00:00]} 2. Nf3 {[%emt 0:00:00]} Nc6 {[%emt 0:00:00]} 3. d4 {[%emt 0:00:00]} cxd4 {[%emt 0:00:00]} 4. Nxd4 {[%emt 0:00:00]} e5 {[%emt 0:00:00]} 5. Nb5 {[%emt 0:03:37]} d6 {[%emt 0:00:00]} 6. N1c3 {[%emt 0:05:21]} a6 {[%emt 0:00:01]} 7. Na3 {[%emt 0:00:11]} Be7 {[%emt 0:00:10]} 8. Nd5 {[%emt 0:01:46]} Nf6 {[%emt 0:01:35]} 9. Nxf6+ {[%emt 0:16:26]} Bxf6 {[%emt 0:01:50] LiveBook: 67 Games} 10. Nc4 {[%emt 0:02:10]} O-O {[%emt 0:07:06]} 11. Be3 {[%emt 0:11:19]} Nd4 {[%emt 0:22:41]} 12. c3 {[%emt 0:06:30]} b5 {[%emt 0:01:03]} 13. cxd4 {[%emt 0:04:58]} exd4 {[%emt 0:04:41]} 14. Bxd4 $11 {[%emt 0:04:21]} bxc4 {[%emt 0:00:42]} 15. Bxf6 {[%emt 0:16:06]} Qxf6 {[%emt 0:00:15]} 16. Bxc4 {[%emt 0:00:29]} Bb7 {[%emt 0:13:12]} 17. Bd5 {[%emt 0:07:18]} Bxd5 {[%emt 0:10:25]} 18. Qxd5 {[%emt 0:00:08]} Rab8 {[%emt 0:00:15]} 19. O-O {[%emt 0:02:13]} Rxb2 {[%emt 0:01:23]} 20. Rab1 {[%emt 0:03:40]} Rxb1 {[%emt 0:06:34]} 21. Rxb1 {[%emt 0:00:02]} g6 {[%emt 0:00:24]} 22. Qc4 {[%emt 0:07:47]} a5 {[%emt 0:06:17]} 23. Qd5 {[%emt 0:03:46]} a4 {[%emt 0:05:13]} 24. Qc4 {[%emt 0:00:46]} a3 {[%emt 0:00:46]} 25. g3 {[%emt 0:03:01]} Re8 {[%emt 0:01:39]} 26. Qd3 {[%emt 0:00:29]} Qe5 {[%emt 0:01:10]} 27. Qxa3 {[%emt 0:00:31]} Qxe4 {[%emt 0:00:09]} 28. Rd1 {[%emt 0:00:28]} Qc2 {[%emt 0:09:14]} 29. Qxd6 {[%emt 0:00:35]} Qxa2 {[%emt 0:00:18]} 30. Qf6 {[%emt 0:00:28]} Qb3 {[%emt 0:01:31]} 31. Ra1 {[%emt 0:00:29]} Qb4 {[%emt 0:01:09]} 32. Kg2 {[%emt 0:00:31]} Qe4+ {[%emt 0:00:27]} 33. Kg1 {[%emt 0:00:19]} Qb4 {[%emt 0:00:08]} 1/2-1/2